fUSD/lending_fUSD_20250107
["ID","MTS","AMOUNT","RATE_DAILY","PERIOD"]
[348024783,1736268687650,-531.84,0.00012053,2]
[348024784,1736268687660,-2273.0,0.00012053,2]
[348024785,1736268687670,-1028.58,0.00012053,2]
[348024786,1736268687679,-1591.44,0.00012053,2]
[348024787,1736268687689,-540.9163344,0.00012053,2]
[348024788,1736268687699,-997.13,0.00012053,2]
[348024789,1736268687708,-2714.28,0.00012053,2]
[348024790,1736268687718,-1972.55,0.00012053,2]
[348024791,1736268687728,-200.0,0.00012055,2]
[348024792,1736268687737,-500.0,0.00012059,2]
[348024793,1736268687747,-817.02,0.00012059,2]
[348024794,1736268687757,-1321.84,0.00012059,2]
[348024795,1736268687767,-556.07,0.0001206,2]
[348024796,1736268687777,-850.62,0.0001206,2]
[348024797,1736268687787,-375.15338619,0.0001206,2]
[348024798,1736268687798,-590.0,0.0001206,2]
[348024799,1736268687808,-500.0,0.0001206,2]
[348024800,1736268687817,-733.92,0.0001206,2]
[348024801,1736268687827,-836.91,0.0001206,2]
[348024802,1736268687837,-722.53,0.0001206,2]
[348024803,1736268687847,-897.94,0.0001206,2]
[348024804,1736268687857,-500.0,0.0001206,2]
[348024805,1736268687867,-500.0,0.0001206,2]
[348024806,1736268687876,-500.0,0.0001206,2]
[348024807,1736268687886,-500.0,0.0001206,2]
[348024808,1736268687896,-500.0,0.0001206,2]
[348024809,1736268687906,-797.59,0.0001206,2]
[348024810,1736268687915,-593.4,0.0001206,2]
[348024811,1736268687925,-500.0,0.0001206,2]
[348024812,1736268687935,-500.0,0.0001206,2]
[348024813,1736268687945,-910.72,0.0001206,2]
[348024814,1736268687954,-519.37,0.0001206,2]
[348024815,1736268687964,-812.74,0.0001206,2]
[348024816,1736268687974,-531.28,0.0001206,2]
[348024817,1736268687984,-500.0,0.0001206,2]
[348024818,1736268687994,-528.34,0.0001206,2]
[348024819,1736268688004,-1325.98,0.0001206,2]
[348024820,1736268688014,-826.1,0.0001206,2]
[348024821,1736268688024,-355.09658351,0.0001206,2]
[348024822,1736268688034,-500.0,0.0001206,2]
[348024823,1736268688044,-582.94,0.0001206,2]
[348024824,1736268688054,-749.9,0.0001206,2]
[348024825,1736268688064,-960.33,0.0001206,2]
[348024826,1736268688074,-500.0,0.0001206,2]
[348024827,1736268688085,-824.34,0.0001206,2]
[348024828,1736268688095,-500.0,0.0001206,2]
[348024829,1736268688104,-557.29,0.0001206,2]
[348024830,1736268688115,-1090.09,0.0001206,2]
[348024831,1736268688125,-663.62,0.0001206,2]
[348024832,1736268688135,-557.55,0.0001206,2]
[348024833,1736268688145,-500.0,0.0001206,2]
[348024834,1736268688155,-500.0,0.0001206,2]
[348024835,1736268688165,-1547.89,0.0001206,2]
[348024836,1736268688175,-500.0,0.0001206,2]
[348024837,1736268688184,-913.99,0.0001206,2]
[348024838,1736268688193,-500.0,0.0001206,2]
[348024839,1736268688203,-500.0,0.0001206,2]
[348024840,1736268688212,-582.8,0.0001206,2]
[348024841,1736268688222,-500.0,0.0001206,2]
[348024842,1736268688231,-735.69,0.0001206,2]
[348024843,1736268688240,-500.0,0.0001206,2]
[348024844,1736268688250,-548.74,0.0001206,2]
[348024845,1736268688260,-567.82,0.0001206,2]
[348024846,1736268688270,-609.14,0.0001206,2]
[348024847,1736268688279,-853.91,0.0001206,2]
[348024848,1736268688289,-500.0,0.0001206,2]
[348024849,1736268688298,-500.0,0.0001206,2]
[348024850,1736268688308,-553.12,0.0001206,2]
[348024851,1736268688317,-863.2,0.0001206,2]
[348024852,1736268688327,-1230.46,0.0001206,2]
[348024853,1736268688337,-531.05,0.0001206,2]
[348024854,1736268688347,-500.0,0.0001206,2]
[348024855,1736268688356,-500.0,0.0001206,2]
[348024856,1736268688366,-773.27,0.0001206,2]
[348024857,1736268688375,-831.05,0.0001206,2]
[348024858,1736268688385,-2392.33,0.0001206,2]
[348024859,1736268688394,-514.77,0.0001206,2]
[348024860,1736268688404,-912.02,0.0001206,2]
[348024861,1736268688413,-1029.27,0.0001206,2]
[348024862,1736268688423,-1494.48,0.0001206,2]
[348024863,1736268688432,-1004.88,0.0001206,2]
[348024864,1736268688443,-500.0,0.0001206,2]
[348024865,1736268688452,-858.75,0.0001206,2]
[348024866,1736268688462,-2127.93,0.0001206,2]
[348024867,1736268688471,-2342.11,0.0001206,2]
[348024868,1736268688481,-1358.1,0.0001206,2]
[348024869,1736268688491,-539.24,0.0001206,2]
[348024870,1736268688500,-609.78,0.0001206,2]
[348024871,1736268688510,-1333.64,0.0001206,2]
[348024872,1736268688519,-2822.03,0.0001206,2]
[348024873,1736268688529,-602.54,0.0001206,2]
[348024874,1736268688539,-1190.44,0.0001206,2]
[348024875,1736268688547,-500.0,0.0001206,2]
[348024876,1736268688561,-793.26,0.0001206,2]
[348024877,1736268688571,-1546.56,0.0001206,2]
[348024878,1736268688581,-1051.54,0.0001206,2]
[348024879,1736268688590,-722.34,0.0001206,2]
[348024880,1736268688600,-1149.51,0.0001206,2]
[348024881,1736268688611,-1887.44,0.0001206,2]
[348024882,1736268688621,-865.45,0.0001206,2]
[348024883,1736268688631,-500.0,0.0001206,2]
[348024884,1736268688641,-807.88,0.0001206,2]
[348024885,1736268688651,-910.92,0.0001206,2]
[348024886,1736268688661,-500.0,0.0001206,2]
[348024887,1736268688671,-500.0,0.0001206,2]
[348024888,1736268688680,-1777.29,0.0001206,2]
[348024889,1736268688691,-5860.4,0.0001206,2]
[348024890,1736268688701,-500.0,0.0001206,2]
[348024891,1736268688710,-500.0,0.0001206,2]
[348024892,1736268688719,-757.84,0.0001206,2]
[348024893,1736268688729,-706.99,0.0001206,2]
[348024894,1736268688738,-1001.12,0.0001206,2]
[348024895,1736268688747,-218.463418,0.0001206,2]
[348024896,1736268688756,-2561.02,0.0001206,2]
[348024897,1736268688767,-1084.58,0.0001206,2]
[348024898,1736268688777,-4263.82,0.0001206,2]
[348024899,1736268688787,-1460.17,0.0001206,2]
[348024900,1736268688798,-500.0,0.0001206,2]
[348024901,1736268688809,-1616.76,0.0001206,2]
[348024902,1736268688819,-233.574732,0.0001206,2]
[348024903,1736268688829,-2923.63,0.0001206,2]
[348024904,1736268688839,-1003.09,0.0001206,2]
[348024905,1736268688849,-942.56,0.0001206,2]
[348024906,1736268688859,-592.62,0.0001206,2]
[348024907,1736268688868,-500.0,0.0001206,2]
[348024908,1736268688878,-2206.35,0.0001206,2]
[348024909,1736268688887,-500.0,0.0001206,2]
[348024910,1736268688897,-1217.32,0.0001206,2]
[348024911,1736268688906,-4714.17,0.0001206,2]
[348024912,1736268688915,-4374.14,0.0001206,2]
[348024913,1736268688924,-500.0,0.0001206,2]
[348024914,1736268688934,-779.65,0.0001206,2]
[348024915,1736268688943,-544.8,0.0001206,2]
[348024916,1736268688952,-2901.84,0.0001206,2]
[348024917,1736268688962,-794.55,0.0001206,2]
[348024918,1736268688971,-884.2,0.0001206,2]
[348024919,1736268688980,-2312.21,0.0001206,2]
[348024920,1736268688990,-500.0,0.0001206,2]
[348024921,1736268688999,-500.0,0.0001206,2]
[348024922,1736268689008,-1059.63,0.0001206,2]
[348024923,1736268689017,-500.0,0.0001206,2]
[348024924,1736268689026,-779.93,0.0001206,2]
[348024925,1736268689035,-604.36,0.0001206,2]
[348024926,1736268689045,-1870.96,0.0001206,2]
[348024927,1736268689054,-1153.17,0.0001206,2]
[348024928,1736268689064,-559.47,0.0001206,2]
[348024929,1736268689073,-782.74,0.0001206,2]
[348024930,1736268689083,-595.86,0.0001206,2]
[348024931,1736268689092,-1083.61,0.0001206,2]
[348024932,1736268689102,-500.0,0.0001206,2]
[348024933,1736268689111,-1115.91,0.0001206,2]
[348024934,1736268689121,-715.2,0.0001206,2]
[348024935,1736268689133,-500.0,0.0001206,2]
[348024936,1736268689143,-515.26,0.00012061,2]
[348024937,1736268689152,-500.0,0.00012061,2]
[348024938,1736268689162,-500.0,0.00012061,2]
[348024939,1736268689171,-533.91,0.00012061,2]
[348024940,1736268689181,-500.0,0.00012061,2]
[348024941,1736268689190,-500.0,0.00012061,2]
[348024942,1736268689199,-500.0,0.00012061,2]
[348024943,1736268689208,-500.0,0.00012061,2]
[348024944,1736268689218,-500.0,0.00012061,2]
[348024945,1736268689227,-500.0,0.00012061,2]
[348024946,1736268689236,-500.0,0.00012061,2]
[348024947,1736268689248,-500.0,0.00012061,2]
[348024948,1736268689257,-500.0,0.00012061,2]
[348024949,1736268689267,-538.96,0.00012061,2]
[348024950,1736268689276,-500.0,0.00012061,2]
[348024951,1736268689285,-500.0,0.00012061,2]
[348024952,1736268689295,-845.74,0.00012061,2]
[348024953,1736268689304,-500.0,0.00012061,2]
[348024954,1736268689314,-500.0,0.00012061,2]
[348024955,1736268689324,-592.86,0.00012061,2]
[348024956,1736268689334,-600.81,0.00012061,2]
[348024957,1736268689344,-500.0,0.00012061,2]
[348024958,1736268689354,-519.72,0.00012061,2]
[348024959,1736268689364,-500.0,0.00012061,2]
[348024960,1736268689375,-819.07,0.00012061,2]
[348024961,1736268689385,-500.0,0.00012061,2]
[348024962,1736268689395,-518.34,0.00012061,2]
[348024963,1736268689406,-616.88,0.00012061,2]
[348024964,1736268689417,-500.0,0.00012061,2]
[348024965,1736268689427,-500.0,0.00012061,2]
[348024966,1736268689437,-500.0,0.00012061,2]
[348024967,1736268689446,-552.04,0.00012061,2]
[348024968,1736268689455,-500.0,0.00012061,2]
[348024969,1736268689465,-500.0,0.00012061,2]
[348024970,1736268689475,-500.0,0.00012061,2]
[348024971,1736268689485,-500.0,0.00012061,2]
[348024972,1736268689496,-500.0,0.00012061,2]
[348024973,1736268689505,-500.0,0.00012061,2]
[348024974,1736268689515,-500.0,0.00012061,2]
[348024975,1736268689524,-870.58,0.00012061,2]
[348024976,1736268689534,-687.56,0.00012061,2]
[348024977,1736268689543,-500.0,0.00012061,2]
[348024978,1736268689556,-791.82,0.00012061,2]
[348024979,1736268689569,-500.0,0.00012061,2]
[348024980,1736268689579,-500.0,0.00012061,2]
[348024981,1736268689590,-500.0,0.00012061,2]
[348024982,1736268689603,-500.0,0.00012061,2]
[348024983,1736268689613,-500.0,0.00012061,2]
[348024984,1736268689625,-927.26,0.00012061,2]
[348024985,1736268689636,-558.34,0.00012061,2]
[348024986,1736268689646,-500.0,0.00012061,2]
[348024987,1736268689656,-500.0,0.00012061,2]
[348024988,1736268689666,-655.3,0.00012061,2]
[348024989,1736268689676,-557.31,0.00012061,2]
[348024990,1736268689685,-656.36,0.00012061,2]
[348024991,1736268689695,-500.0,0.00012061,2]
[348024992,1736268689705,-918.28,0.00012061,2]
[348024993,1736268689716,-582.18,0.00012061,2]
[348024994,1736268689726,-685.99,0.00012061,2]
[348024995,1736268689736,-583.44,0.00012061,2]
[348024996,1736268689747,-641.46,0.00012061,2]
[348024997,1736268689757,-612.42,0.00012061,2]
[348024998,1736268689768,-500.0,0.00012061,2]
[348024999,1736268689778,-520.7,0.00012061,2]
[348025000,1736268689788,-500.0,0.00012061,2]
[348025001,1736268689798,-500.0,0.00012061,2]
[348025002,1736268689808,-500.0,0.00012061,2]
[348025003,1736268689818,-500.0,0.00012061,2]
[348025004,1736268689827,-505.14,0.00012061,2]
[348025005,1736268689837,-500.0,0.00012061,2]
[348025006,1736268689848,-735.13,0.00012061,2]
[348025007,1736268689858,-545.51017627,0.00012061,2]
[348025008,1736268689868,-512.9,0.00012061,2]
[348025009,1736268689877,-500.0,0.00012061,2]
[348025010,1736268689886,-500.0,0.00012061,2]
[348025011,1736268689896,-500.0,0.00012061,2]
[348025012,1736268689906,-500.0,0.00012061,2]
[348025013,1736268689915,-500.0,0.00012061,2]
[348025014,1736268689924,-500.0,0.00012061,2]
[348025015,1736268689934,-597.15,0.00012061,2]
[348025016,1736268689944,-921.38,0.00012061,2]
[348025017,1736268689963,-851.41,0.00012061,2]
[348025018,1736268689974,-500.0,0.00012061,2]
[348025019,1736268689983,-430.23,0.00012061,2]
[348025020,1736268689994,-500.0,0.00012061,2]
[348025021,1736268690003,-500.0,0.00012061,2]
[348025022,1736268690013,-500.0,0.00012061,2]
[348025023,1736268690023,-500.0,0.00012061,2]
[348025024,1736268690261,-500.0,0.00012061,2]
[348025025,1736268690272,-500.0,0.00012061,2]
[348025026,1736268690282,-538.02,0.00012061,2]
[348025027,1736268690293,-526.88,0.00012061,2]
[348025028,1736268690302,-969.14,0.00012061,2]
[348025029,1736268690312,-850.4,0.00012061,2]
[348025030,1736268690322,-500.0,0.00012061,2]
[348025031,1736268690331,-500.0,0.00012061,2]
[348025032,1736268690342,-1025.87,0.00012061,2]
[348025033,1736268690351,-877.47,0.00012061,2]
[348025034,1736268690361,-500.0,0.00012061,2]
[348025035,1736268690371,-615.53,0.00012061,2]
[348025036,1736268690381,-500.0,0.00012061,2]
[348025037,1736268690390,-590.64,0.00012061,2]
[348025038,1736268690400,-500.0,0.00012061,2]
[348025039,1736268690410,-500.0,0.00012061,2]
[348025040,1736268690420,-585.59,0.00012061,2]
[348025041,1736268690430,-500.0,0.00012061,2]
[348025042,1736268690440,-646.69,0.00012061,2]
[348025043,1736268690449,-500.0,0.00012061,2]
[348025044,1736268690459,-500.0,0.00012061,2]
[348025045,1736268690469,-1597.45,0.000121,2]
[348025046,1736268690479,-2000.9907669,0.000121,3]
[348025047,1736268690490,-133308.47961722,0.000121,2]
[348025048,1736268690499,-50948.55999344,0.00012108,2]
[348025049,1736268690509,-500.0,0.00012131,2]
[348025050,1736268690519,-200.0,0.00012131,2]
[348025051,1736268690529,-615.39,0.00012166,2]
[348025052,1736268690539,-500.0,0.00012196,2]
[348025053,1736268690549,-250000.0,0.000122,2]
[348025054,1736268690561,-10111.271171,0.000122,2]
[348025055,1736268690571,-22727.00761783,0.000122,2]
[348025056,1736268690580,-14082.45438893,0.000122,2]
[348025057,1736268690590,-152.472141,0.00012223,3]
[348025058,1736268690601,-39500.24635776,0.00012263,2]
[348025059,1736268690610,-150.0,0.00012292,2]
[348025060,1736268690620,-500.0,0.00012292,2]
[348025061,1736268690633,-150.0,0.00012292,2]
[348025062,1736268690644,-150.0,0.00012292,2]
[348025063,1736268690654,-150.0,0.00012292,2]
[348025064,1736268690663,-3950718.90764911,0.000123,2]
[348025065,1736268690673,-3277984.00526812,0.000123,2]
[348025066,1736268690682,-2506384.59132671,0.000123,2]
[348025067,1736268691033,-117911.16668494,0.000123,2]
[348025068,1736268691045,-846.90000006,0.000123,2]
[348025069,1736268691057,-6751.08888355,0.000123,2]
[348025070,1736268691077,-500.0,9.32e-05,2]
[348025071,1736268691087,-224.000035,0.000123,2]
[348025072,1736268691099,-1183.499996,0.000123,2]
[348025073,1736268691110,-33438.42347291,0.000123,2]
[348025074,1736268691122,-2669.85265,0.000123,2]
[348025075,1736268691142,-272.93737083,9.594e-05,2]
[348025076,1736268691155,-323.06262917,9.594e-05,2]
[348025077,1736268691164,-602.53917508,0.000123,2]
[348025078,1736268691176,-1947.44,0.000123,2]
[348025079,1736268691187,-285.214,0.000123,2]
[348025080,1736268691354,-513.88,8.772e-05,2]
[348025081,1736268691364,-500.0,9.594e-05,2]
[348025082,1736268691373,-456.844,0.00010923,2]
[348025083,1736268691383,-818.1,0.0001206,2]
[348025084,1736268691392,-3399.24950281,0.000123,2]
[348025085,1736268691404,-20005.6752,0.000123,2]
[348025086,1736268691415,-4906735.84766751,0.000123,2]
[348025087,1736268691427,-2670403.57475664,0.000123,2]
[348025088,1736268691447,-500.0,9.868e-05,2]
[348025089,1736268691457,-500.00000181,0.000123,2]
[348025090,1736268691468,-823.375,0.000123,2]
[348025091,1736268691623,-1962.65,0.000123,2]
[348025092,1736268691635,-1739.8,0.000123,2]
[348025093,1736268691647,-14740.82428582,0.000123,2]
[348025094,1736268691658,-981.96968,0.000123,2]
[348025095,1736268691890,-432.0,8.497e-05,2]
[348025096,1736268691902,-68.0,8.497e-05,2]
[348025097,1736268691912,-500.0,8.497e-05,2]
[348025098,1736268691922,-503.71,8.771e-05,2]
[348025099,1736268691931,-323.04,8.771e-05,2]
[348025100,1736268691941,-500.0,8.772e-05,2]
[348025101,1736268691951,-500.0,0.00010142,2]
[348025102,1736268691961,-783867.6692716,0.000123,2]
[348025103,1736268691973,-683.665,0.000123,2]
[348025104,1736268691985,-391310.3234625,0.000123,2]
[348025105,1736268691999,-14678.25,0.000123,2]
[348025106,1736268692011,-18017.202,0.000123,2]
[348025107,1736268692023,-981.05947864,0.000123,2]
[348025108,1736268692034,-4909.1,0.000123,2]
[348025109,1736268692046,-347.67,0.000123,2]
[348025110,1736268692057,-7812.48,0.000123,2]
[348025111,1736268692069,-3583.4,0.000123,2]
[348025112,1736268692252,-79429.42782047,0.000123,2]
[348025113,1736268692264,-411608.74472225,0.000123,2]
[348025114,1736268692379,-500.0,0.00010416,2]
[348025115,1736268692389,-7797.81488646,0.000123,2]
[348025116,1736268692400,-3640.74121419,0.000123,2]
[348025117,1736268692668,-3106.66750963,0.000123,2]
[348025118,1736268692679,-1098.0,0.000123,2]
[348025119,1736268692691,-29157.95169096,0.000123,2]
[348025120,1736268692710,-57079.56259347,0.000123,2]
[348025121,1736268692722,-2465.23679469,0.000123,2]
[348025122,1736268692745,-266.34815154,0.000123,2]
[348025123,1736268692758,-2338.1,0.000123,2]
[348025124,1736268692771,-368.18,0.000123,2]
[348025125,1736268692783,-697.24,0.000123,2]
[348025126,1736268692795,-552.73503,0.000123,2]
[348025134,1736269615108,-271.80919609,8.219e-05,2]
[348025161,1736269831831,-228.19080391,8.219e-05,2]
[348025162,1736269831841,-500.0,8.219e-05,2]
[348025163,1736269831850,-500.0,8.219e-05,2]
[348025164,1736269831861,-1129.65,8.219e-05,2]
[348025165,1736269831870,-23900.0,8.399e-05,2]
[348025166,1736269831880,-250.0,8.456e-05,2]
[348025167,1736269831889,-500.0,8.497e-05,2]
[348025168,1736269831899,-500.0,8.497e-05,2]
[348025169,1736269831908,-500.0,8.497e-05,2]
[348025170,1736269831918,-500.0,8.497e-05,2]
[348025171,1736269831928,-500.0,8.497e-05,2]
[348025172,1736269831937,-500.0,8.497e-05,2]
[348025173,1736269831947,-500.0,8.497e-05,2]
[348025174,1736269831956,-607.18,8.497e-05,2]
[348025175,1736269831966,-500.0,8.497e-05,2]
[348025176,1736269831976,-500.0,8.497e-05,2]
[348025177,1736269831985,-500.0,8.497e-05,2]
[348025178,1736269831995,-500.0,8.497e-05,2]
[348025179,1736269832005,-500.0,8.497e-05,2]
[348025180,1736269832014,-500.0,8.497e-05,2]
[348025181,1736269832023,-500.0,8.497e-05,2]
[348025182,1736269832031,-500.0,8.497e-05,2]
[348025183,1736269832040,-500.0,8.497e-05,2]
[348025184,1736269832050,-500.0,8.497e-05,2]
[348025185,1736269832060,-500.0,8.497e-05,2]
[348025186,1736269832069,-498.03439602,8.497e-05,2]
[348025187,1736269832096,-1.96560398,8.497e-05,2]
[348025188,1736269832106,-500.0,8.497e-05,2]
[348025189,1736269832115,-500.0,8.497e-05,2]
[348025190,1736269832124,-500.0,8.497e-05,2]
[348025191,1736269832136,-500.0,8.497e-05,2]
[348025192,1736269832146,-500.0,8.497e-05,2]
[348025193,1736269832156,-500.0,8.497e-05,2]
[348025194,1736269832169,-500.0,8.497e-05,2]
[348025195,1736269832180,-500.0,8.497e-05,2]
[348025196,1736269832190,-500.0,8.497e-05,2]
[348025197,1736269832201,-500.0,8.497e-05,2]
[348025198,1736269832211,-500.0,8.497e-05,2]
[348025199,1736269832220,-500.0,8.497e-05,2]
[348025200,1736269832230,-500.0,8.497e-05,2]
[348025201,1736269832241,-500.0,8.497e-05,2]
[348025202,1736269832251,-500.0,8.497e-05,2]
[348025203,1736269832261,-500.0,8.497e-05,2]
[348025204,1736269832271,-500.0,8.497e-05,2]
[348025205,1736269832281,-500.0,8.497e-05,2]
[348025206,1736269832290,-500.0,8.497e-05,2]
[348025207,1736269832299,-500.0,8.497e-05,2]
[348025208,1736269832308,-500.0,8.497e-05,2]
[348025209,1736269832318,-1144.98,8.497e-05,2]
[348025210,1736269832328,-500.0,8.497e-05,2]
[348025211,1736269832339,-500.0,8.497e-05,2]
[348025212,1736269832348,-590.87,8.497e-05,2]
[348025213,1736269832357,-500.0,8.497e-05,2]
[348025214,1736269832367,-500.0,8.497e-05,2]
[348025215,1736269832376,-2051.12,8.497e-05,2]
[348025216,1736269832389,-565.88,8.497e-05,2]
[348025217,1736269832398,-500.0,8.497e-05,2]
[348025218,1736269832407,-500.0,8.497e-05,2]
[348025219,1736269832416,-500.0,8.497e-05,2]
[348025220,1736269832425,-500.0,8.497e-05,2]
[348025221,1736269832434,-500.0,8.497e-05,2]
[348025222,1736269832443,-1253.8,8.497e-05,2]
[348025223,1736269832453,-500.0,8.497e-05,2]
[348025224,1736269832462,-176.53720328,8.497e-05,2]
[348025225,1736269832472,-500.0,8.497e-05,2]
[348025226,1736269832481,-500.0,8.497e-05,2]
[348025227,1736269832491,-500.0,8.497e-05,2]
[348025228,1736269832500,-500.0,8.497e-05,2]
[348025229,1736269832509,-500.0,8.497e-05,2]
[348025230,1736269832519,-500.0,8.497e-05,2]
[348025231,1736269832528,-2341.36,8.497e-05,2]
[348025232,1736269832537,-500.0,8.497e-05,2]
[348025233,1736269832546,-500.0,8.497e-05,2]
[348025234,1736269832555,-500.0,8.497e-05,2]
[348025235,1736269832564,-1531.0,8.497e-05,2]
[348025236,1736269832573,-500.0,8.497e-05,2]
[348025237,1736269832583,-500.0,8.497e-05,2]
[348025238,1736269832592,-500.0,8.497e-05,2]
[348025239,1736269832601,-4687.05,8.497e-05,2]
[348025240,1736269832611,-581.8,8.497e-05,2]
[348025241,1736269832620,-500.0,8.497e-05,2]
[348025242,1736269832631,-500.0,8.497e-05,2]
[348025243,1736269832639,-2613.22,8.497e-05,2]
[348025244,1736269832649,-500.0,8.497e-05,2]
[348025245,1736269832658,-551.19,8.497e-05,2]
[348025246,1736269832668,-500.0,8.497e-05,2]
[348025247,1736269832678,-500.0,8.497e-05,2]
[348025248,1736269832687,-500.0,8.497e-05,2]
[348025249,1736269832696,-500.0,8.497e-05,2]
[348025250,1736269832706,-500.0,8.497e-05,2]
[348025251,1736269832715,-500.0,8.497e-05,2]
[348025252,1736269832724,-3454.34,8.497e-05,2]
[348025253,1736269832734,-1451.23,8.497e-05,2]
[348025254,1736269832743,-500.0,8.497e-05,2]
[348025255,1736269832751,-699.38,8.497e-05,2]
[348025256,1736269832760,-500.0,8.497e-05,2]
[348025257,1736269832769,-675.82,8.497e-05,2]
[348025258,1736269832779,-500.0,8.497e-05,2]
[348025259,1736269832788,-908.6,8.497e-05,2]
[348025260,1736269832797,-500.0,8.497e-05,2]
[348025261,1736269832807,-500.0,8.497e-05,2]
[348025262,1736269832816,-500.0,8.497e-05,2]
[348025263,1736269832825,-500.0,8.497e-05,2]
[348025264,1736269832834,-500.0,8.497e-05,2]
[348025265,1736269832844,-900.0,8.498e-05,2]
[348025266,1736269832853,-500.0,8.498e-05,2]
[348025267,1736269832862,-500.0,8.498e-05,2]
[348025268,1736269832871,-500.0,8.498e-05,2]
[348025269,1736269832883,-500.0,8.498e-05,2]
[348025270,1736269832892,-500.0,8.498e-05,2]
[348025271,1736269832901,-500.0,8.498e-05,2]
[348025272,1736269832911,-500.0,8.498e-05,2]
[348025273,1736269832921,-500.0,8.498e-05,2]
[348025274,1736269832930,-500.0,8.498e-05,2]
[348025275,1736269832939,-500.0,8.498e-05,2]
[348025276,1736269832949,-500.0,8.498e-05,2]
[348025277,1736269832959,-500.0,8.498e-05,2]
[348025278,1736269832968,-255.51,8.498e-05,2]
[348025279,1736269832978,-500.0,8.498e-05,2]
[348025280,1736269832987,-500.0,8.498e-05,2]
[348025281,1736269832996,-500.0,8.498e-05,2]
[348025282,1736269833006,-500.0,8.498e-05,2]
[348025283,1736269833015,-500.0,8.498e-05,2]
[348025284,1736269833024,-500.0,8.498e-05,2]
[348025285,1736269833034,-500.0,8.498e-05,2]
[348025286,1736269833043,-500.0,8.498e-05,2]
[348025287,1736269833053,-500.0,8.498e-05,2]
[348025288,1736269833064,-500.0,8.498e-05,2]
[348025289,1736269833074,-500.0,8.498e-05,2]
[348025290,1736269833084,-500.0,8.498e-05,2]
[348025291,1736269833094,-500.0,8.498e-05,2]
[348025292,1736269833104,-500.0,8.498e-05,2]
[348025293,1736269833114,-500.0,8.498e-05,2]
[348025294,1736269833123,-500.0,8.498e-05,2]
[348025295,1736269833133,-500.0,8.498e-05,2]
[348025296,1736269833143,-500.0,8.498e-05,2]
[348025297,1736269833158,-500.0,8.498e-05,2]
[348025298,1736269833167,-500.0,8.498e-05,2]
[348025299,1736269833178,-500.0,8.498e-05,2]
[348025300,1736269833189,-500.0,8.498e-05,2]
[348025301,1736269833200,-500.0,8.498e-05,2]
[348025302,1736269833210,-500.0,8.498e-05,2]
[348025303,1736269833220,-500.0,8.498e-05,2]
[348025304,1736269833231,-500.0,8.498e-05,2]
[348025305,1736269833241,-500.0,8.498e-05,2]
[348025306,1736269833251,-500.0,8.498e-05,2]
[348025307,1736269833260,-500.0,8.498e-05,2]
[348025308,1736269833270,-500.0,8.498e-05,2]
[348025309,1736269833280,-500.0,8.498e-05,2]
[348025310,1736269833290,-500.0,8.498e-05,2]
[348025311,1736269833299,-500.0,8.498e-05,2]
[348025312,1736269833309,-500.0,8.498e-05,2]
[348025313,1736269833319,-527.7399401,8.498e-05,2]
[348025314,1736269833329,-500.0,8.498e-05,2]
[348025315,1736269833339,-500.0,8.498e-05,2]